Cogmind - Beta 11.1 @@@ ROGUE MODE // 2022.09.30 @ 19:59:24 // Winter2019/RPGLIKE Player: Benkyo Result: Destroyed by 8R-AWN with 8R-AWN's Boregun Performance ------------- Evolutions (0) 0 Regions Visited (3) 600 Robots Destroyed (30) 150 Value Destroyed (836) 836 Prototype IDs (2) 40 Alien Tech Used (0) 0 Bonus (-21) -21 TOTAL SCORE: 1605 Bonus ------- High Alert Combat Kills 10 Friendly Fire -31 Cogmind --------- Core Integrity 0/900 Matter 247/300 Energy 275/275 System Corruption 6% Temperature Cool (0) Movement Rolling (100) Location -10/Exiles Parts ------- > --- POWER (1) -------- Deuterium Engine > --- PROPULSION (2) --- Compact Wheel Compact Wheel > --- UTILITY (3) ------ Improved Terrain Scanner Hacking Suite > --- WEAPON (3) ------- Beam Cannon Assault Rifle > --- INVENTORY (3) ---- Rocket Launcher Peak State ------------ > --- POWER ------------ Deuterium Engine > --- PROPULSION ------- Compact Wheel Compact Wheel > --- UTILITY ---------- Improved Terrain Scanner Hacking Suite Tractor Beam > --- WEAPON ----------- Makeshift Hammer > --- INVENTORY -------- Beam Cannon Assault Rifle Assault Rifle [Rating: 16] Favorites ----------- Power Ion Engine Engine Ion Engine Propulsion Compact Wheel Wheel Compact Wheel Utility Improved Terrain Scanner Device Improved Terrain Scanner Hackware Hacking Suite Weapon Assault Rifle Energy Cannon Beam Cannon Ballistic Gun Assault Rifle Impact Weapon Makeshift Hammer Build | -11 -10 -10 -10 ------- Run | Scr Mat Min Exi Slots Evolved 5 | 4 1 . . Power . | . . . . Propulsion 1 | 1 . . . Utility 2 | 2 . . . Weapon 2 | 1 1 . . Parts Attached 20 | 8 6 2 4 Power 3 | 1 1 1 . Engine 3 | 1 1 1 . Core . | . . . . Reactor . | . . . . Propulsion 4 | 2 1 1 . Treads . | . . . . Leg . | . . . . Wheel 4 | 2 1 1 . Hover . | . . . . Flight . | . . . . Utility 5 | 3 2 . . Device 4 | 3 1 . . Storage . | . . . . Processor . | . . . . Hackware 1 | . 1 . . Protection . | . . . . Artifact . | . . . . Weapon 8 | 2 2 . 4 Energy Gun . | . . . . Energy Cannon 2 | . 1 . 1 Ballistic Gun 5 | 2 1 . 2 Ballistic Cannon . | . . . . Launcher . | . . . . Special Weapon . | . . . . Impact Weapon 1 | . . . 1 Slashing Weapon . | . . . . Piercing Weapon . | . . . . Special Melee Weapon . | . . . . Unidentified Prototypes . | . . . . Parts Lost 2 | . . . 2 Power . | . . . . Propulsion . | . . . . Utility 1 | . . . 1 Weapon 1 | . . . 1 Highest Loss Streak 1 | . . . 1 To Critical Strikes 1 | . . . 1 Average Slot Usage (%) 94 | . 99 99 77 Engine 11 | . 11 11 11 Wheel 23 | . 24 21 22 Device 27 | . 33 22 20 Hackware 6 | . 2 11 11 Energy Cannon 5 | . 3 11 3 Ballistic Gun 19 | . 24 22 7 Naked Turns . | . . . . Heaviest Build 18 | 12 15 18 18 Greatest Support 32 | 32 32 32 32 Greatest Overweight (x) 1 | 1 . . . Average Overweight (x) . | . . . . Largest Inventory Capacity 3 | 1 1 2 3 Average Capacity 1 | 1 1 1 2 Most Carried 3 | 1 1 2 3 Average Carried 1 | . . 1 1 Final Capacity 3 | 1 1 2 3 Final Carried 2 | 1 1 2 1 Class Distribution -------------------- 46% | Mutant 33% | Scavenger-Mutant 16% | Skirmisher Dominant Class ---------------- Scavenger-Mutant | -10/Materials Mutant | -10/Mines Mutant | -10/Exiles Resources | -11 -10 -10 -10 ----------- Run | Scr Mat Min Exi Matter Collected 1140 | 298 461 117 264 Remotely 724 | 88 461 117 58 Salvage Created 1037 | 74 685 200 78 Parts 71 | 7 50 12 2 Haulers Intercepted . | . . . . Recyclers Shooed 2 | 1 1 . . Parts Field Recycled . | . . . . Retrieved Matter . | . . . . Parts Self-Destructed . | . . . . Prevented . | . . . . Kills | -11 -10 -10 -10 ------- Run | Scr Mat Min Exi Combat Hostiles Destroyed 21 | . 16 2 3 Guns 19 | . 16 2 1 Cannons 2 | . . . 2 Classes Destroyed 9 | 2 4 1 2 Worker 3 | . . 3 . Tunneler 1 | 1 . . . Recycler 2 | 1 1 . . Operator 2 | . 2 . . Watcher 3 | . 3 . . Swarmer 6 | . 6 . . Grunt 12 | . 10 2 . Zionite 1 | . . . 1 Assembled 3 | . . . 3 Best Kill Streak 5 | 2 5 2 3 Combat Bots Only 4 | . 4 2 3 Max Kills in Single Turn 1 | 1 1 1 1 Gunslinging . | . . . . Exploded . | . . . . Melee . | . . . . Uniques/NPCs Destroyed . | . . . . Combat | -11 -10 -10 -10 -------- Run | Scr Mat Min Exi Damage Taken 1591 | . 442 146 1003 Core 1255 | . 349 126 780 Absorbed by Shields . | . . . . Redirected to Core 1041 | . 287 68 686 Core Remaining (%) 100 | 100 . . . Volleys Fired 156 | 3 95 21 37 Largest 3 | 2 3 3 3 Hottest 100 | 40 100 100 100 Shots Fired 309 | 6 157 38 108 Gun 213 | 6 116 18 73 Cannon 96 | . 41 20 35 Launcher . | . . . . Special . | . . . . Kinetic 213 | 6 116 18 73 Thermal 96 | . 41 20 35 Explosive . | . . . . Electromagnetic . | . . . . Robot Hit Streak 21 | 4 8 6 21 Robot Miss Streak 5 | . 5 1 2 Penetration Max . | . . . . Secondary Targets . | . . . . Shots Hit Robots 177 | 4 69 15 89 Core Hits 69 | 3 38 8 20 Critical Kills . | . . . . Critical Parts Destroyed 1 | . 1 . . Critical Strikes 2 | . 1 . 1 Destroy 2 | . 1 . 1 Melee Attacks . | . . . . Impact . | . . . . Slashing . | . . . . Piercing . | . . . . Sneak Attacks . | . . . . Combat Hostiles . | . . . . Follow-up Attacks . | . . . . Damage Inflicted 2218 | 50 887 244 1037 Guns 1752 | 50 849 125 728 Cannons 431 | . 34 88 309 Explosions 31 | . . 31 . Melee . | . . . . Ramming 4 | . 4 . . Kinetic 1752 | 50 849 125 728 Thermal 462 | . 34 119 309 Explosive . | . . . . Electromagnetic . | . . . . Impact . | . . . . Slashing . | . . . . Piercing . | . . . . Highest Corruption 6 | . 6 6 6 Average Corruption 5 | . 4 6 6 Corruption Purged . | . . . . Corruption Blocked . | . . . . Effects 65 | . 28 21 16 Message Errors 13 | . 6 3 4 Matter Fused 22 | . 8 8 6 Heat Flow Errors 5 | . 2 2 1 Energy Discharges 8 | . 4 2 2 Parts Rejected 3 | . 2 1 . Data Loss (minor) 4 | . 1 1 2 Data Loss (major) 2 | . 1 1 . Misfires 3 | . 2 . 1 Alerts 2 | . . 2 . Weapon Failures 3 | . 2 1 . Overload Shots . | . . . . Overflow Damage 1 | . . 1 . Projectiles . | . . . . Explosions 1 | . . 1 . Melee . | . . . . Knockbacks . | . . . . Impact . | . . . . Kinetic . | . . . . Secondary . | . . . . Self-Inflicted Damage 49 | . 2 47 . Shots 1 | . . 1 . Rammed 1 | . 1 . . Targets Rammed 1 | . 1 . . Kicked . | . . . . Crushed . | . . . . Highest Temperature 239 | 6 239 217 215 Average Temperature 65 | 6 51 100 129 Received Heat Transfer 252 | . 198 54 . Siege Activations . | . . . . Robots Corrupted . | . . . . Combat Hostiles . | . . . . Parts Fried . | . . . . Impact Corruptions . | . . . . Robots Melted . | . . . . Combat Hostiles . | . . . . Parts Melted . | . . . . Heat Transferred 756 | . 74 235 447 Parts Sabotaged . | . . . . Parts Stolen . | . . . . Parts Stripped . | . . . . Power Chain Reactions . | . . . . Missiles Intercepted . | . . . . Alert | -11 -10 -10 -10 ------- Run | Scr Mat Min Exi Peak Influence 484 | 10 484 257 . Initial 188 | . 6 188 . Average 254 | 5 300 175 . Maximum Alert Level 2 | . 2 1 . Low Security (%) 24 | 100 15 37 . Level 1 62 | . 64 62 . Level 2 13 | . 20 . . Level 3 . | . . . . Level 4 . | . . . . Level 5 . | . . . . High Security . | . . . . Max Security . | . . . . Squads Dispatched 4 | . 4 . . Investigation 2 | . 2 . . Extermination . | . . . . Reinforcement 2 | . 2 . . Assault . | . . . . Garrison . | . . . . Intercept . | . . . . Searches Triggered . | . . . . Construction Impeded . | . . . . Haulers Reinforced . | . . . . Active Scanning Responses . | . . . . Cargo Convoy Interrupts . | . . . . Stealth | -11 -10 -10 -10 --------- Run | Scr Mat Min Exi Distress Signals 1 | . 1 . . Communications Jammed . | . . . . Distress Signals . | . . . . Times Spotted 34 | . 27 2 5 Peak Tracking Total 11 | . 5 2 11 Tactical Retreats 3 | . 2 . 1 Traps | -11 -10 -10 -10 ------- Run | Scr Mat Min Exi Traps Triggered 2 | . 2 . . Indirectly . | . . . . Trap Hack Attempts . | . . . . Triggered . | . . . . Disarmed . | . . . . Reprogrammed . | . . . . Reused . | . . . . Traps Extracted . | . . . . Installed . | . . . . Triggered . | . . . . Exploded 3 | . . . 3 Machines | -11 -10 -10 -10 ---------- Run | Scr Mat Min Exi Machines Disabled 26 | . 20 4 2 Max in Single Turn 1 | . 1 1 1 Machines Sabotaged . | . . . . Garrisons Compromised . | . . . . Overloaded Fab Kills . | . . . . Hacking | -11 -10 -10 -10 --------- Run | Scr Mat Min Exi Machines Accessed 9 | . 7 1 1 Terminals 5 | . 5 . . Fabricators . | . . . . Repair Stations . | . . . . Recycling Units 2 | . 2 . . Scanalyzers . | . . . . Garrison Access . | . . . . Total Hacks 29 | . 27 1 1 Successful 15 | . 13 1 1 Failed 14 | . 14 . . Catastrophic 1 | . 1 . . Database Lockouts . | . . . . Manual 11 | . 11 . . Terminals 20 | . 20 . . Fabricators . | . . . . Repair Stations . | . . . . Recycling Units 7 | . 7 . . Scanalyzers . | . . . . Garrison Access . | . . . . Terminal Hacks 7 | . 5 1 1 Record 1 | . . . 1 Robot Analysis 1 | . 1 . . Prototype ID Bank 1 | . 1 . . Open Door 1 | . . 1 . Locate Traps 1 | . 1 . . Hauler Manifests 2 | . 2 . . Fabricator Hacks . | . . . . Repair Station Hacks . | . . . . Recycling Unit Hacks 2 | . 2 . . Retrieve Components 2 | . 2 . . Scanalyzer . | . . . . Garrison Access Hacks . | . . . . Unauthorized Hacks 6 | . 6 . . Terminals 4 | . 4 . . Assimilate 1 | . 1 . . Botnet 2 | . 2 . . Operators 1 | . 1 . . Fabricators . | . . . . Repair Stations . | . . . . Recycling Units 2 | . 2 . . Tunnel 2 | . 2 . . Scanalyzers . | . . . . Garrison Access . | . . . . Data Cores Recovered . | . . . . Used . | . . . . Hacking Detections 5 | . 5 . . Full Trace Events . | . . . . Feedback Events . | . . . . Feedback Blocked . | . . . . Robot Schematics Acquired . | . . . . Robots Built . | . . . . Authchips . | . . . . Time . | . . . . Total Robot Build Rating . | . . . . Part Schematics Acquired . | . . . . Parts Built . | . . . . Authchips . | . . . . Time . | . . . . Total Part Build Rating . | . . . . Parts Repaired . | . . . . Time . | . . . . Parts Recycled . | . . . . Recycled Matter . | . . . . Retrieved Matter . | . . . . Retrieved Components 8 | . 8 . . Parts Scanalyzed . | . . . . Part Schematics Acquired . | . . . . Parts Damaged . | . . . . Bothacking | -11 -10 -10 -10 ------------ Run | Scr Mat Min Exi Used RIF Installer . | . . . . Robots Hacked . | . . . . Non-combat . | . . . . Combat . | . . . . Robot Hacks Applied . | . . . . Relay Couplers Released . | . . . . Fabnet Peak Effective % . | . . . . Robots Rewired . | . . . . Allies Hacked . | . . . . Hacks Repelled . | . . . . Allies | -11 -10 -10 -10 -------- Run | Scr Mat Min Exi Total Allies 1 | . 1 . . Largest Group 1 | . 1 1 1 Highest-Rated Group 10 | . 10 10 9 Highest-Rated Ally 10 | . 10 10 9 Total Orders . | . . . . Ally Attacks . | . . . . Total Damage . | . . . . Kills . | . . . . Allies Corrupted . | . . . . Allies Melted . | . . . . Intel | -11 -10 -10 -10 ------- Run | Scr Mat Min Exi Robot Analysis Total 1 | . 1 . . Derelict Logs Recovered 1 | . . 1 . Drone Launches . | . . . . Drone Recoveries . | . . . . Exploration | -11 -10 -10 -10 ------------- Run | Scr Mat Min Exi Turns Passed 2857 | 69 1445 636 707 Spaces Moved 2160 | 50 1023 570 517 Core 8 | 8 . . . Treads . | . . . . Legs . | . . . . Wheels 2152 | 42 1023 570 517 Hover . | . . . . Flight . | . . . . Fastest Speed 50 | 50 100 100 100 Average Speed 99 | 95 100 100 100 Slowest Speed 100 | 100 100 100 100 Overloaded Moves . | . . . . Propulsion Burnouts . | . . . . Robots Hopped . | . . . . Cave-ins Triggered . | . . . . Exploration Rate (%) 61 | 3 96 98 49 Regions Visited 3 Branch Regions 2 Pre-discovered Areas 3 | . 2 . 1 Known Exits Taken . | . . . . Unknown Exits Taken 3 | 1 1 1 . Scrap Searched 1 | . . 1 . Spaces Dug . | . . . . Terrain Destroyed 3 | . . 3 . Melee . | . . . . Projectile . | . . . . AOE 3 | . . 3 . Terrain Rammed . | . . . . Walls Destroyed . | . . . . Machines Disabled . | . . . . Actions | -11 -10 -10 -10 --------- Run | Scr Mat Min Exi Total 2588 | 61 1291 604 632 Wait 190 | . 139 8 43 Move 2157 | 49 1022 569 517 Hop . | . . . . Pick Up 19 | 1 3 2 13 Fast Attach 18 | 8 5 1 4 Attach . | . . . . Detach . | . . . . Swap 2 | . 1 1 . Drop 26 | . 6 2 18 Fire 156 | 3 95 21 37 Melee . | . . . . Ram 1 | . 1 . . Kick . | . . . . Crush . | . . . . Escape Stasis . | . . . . Rewire . | . . . . Trap . | . . . . Miscellaneous 19 | . 19 . . Route ------- -11/Scrapyard -10/Materials (discovered 4 exits: [*Mat x3] / *Min) -10/Mines (discovered 3 exits: [*Mat x2] / *Exi) -10/Exiles History --------- Turn | Location | Event 1 | -11/Scrapyard | Upgraded with Propulsion slot (x1) 1 | -11/Scrapyard | Upgraded with Utility slot (x2) 1 | -11/Scrapyard | Upgraded with Weapon slot (x1) 19 | -11/Scrapyard | Discovered new exit (range 16) 70 | -11/Scrapyard | Entered Materials 241 | -10/Materials | Discovered new exit (range 9) 317 | -10/Materials | Build established: Mutant 415 | -10/Materials | Discovered new exit (range 15) 445 | -10/Materials | Reached level 2 766 | -10/Materials | Discovered new exit (range 14) 857 | -10/Materials | Discovered new exit (range 14) 1019 | -10/Materials | Build established: Scavenger-Mutant 1044 | -10/Materials | Upgraded with Weapon slot (x1) 1298 | -10/Materials | Reached level 3 1515 | -10/Materials | Entered Mines 1515 | -10/Mines | Accompanied by 1 ally 1604 | -10/Mines | Discovered new exit (range 10) 1620 | -10/Mines | Received a Rocket Launcher from a helpful Derelict 1654 | -10/Mines | Deemed a non-threat by the Exiles lab entrance 1654 | -10/Mines | Discovered new exit (range 5) 1686 | -10/Mines | Discovered new exit (range 14) 1703 | -10/Mines | Met a Derelict who couldn't figure out how to use a Trap Extractor 1759 | -10/Mines | Learned Materials stockpile data 1855 | -10/Mines | A weapon hastily lodged in a ceiling crevice suddenly fell to the ground 1871 | -10/Mines | Reached level 4 2151 | -10/Mines | Entered Exiles 2151 | -10/Exiles | Accompanied by 1 ally 2176 | -10/Exiles | Met 8R-AWN 2220 | -10/Exiles | Met EX-HEX 2258 | -10/Exiles | Met EX-DEC 2263 | -10/Exiles | Learned location of Zion (-6) 2299 | -10/Exiles | Met EX-BIN 2675 | -10/Exiles | Attacked by the Exiles 2766 | -10/Exiles | Core integrity fell below 50% 2784 | -10/Exiles | Core integrity fell below 20% 2858 | -10/Exiles | Destroyed by 8R-AWN with 8R-AWN's Boregun Last Messages --------------- 02817_ Extracted 6 matter. 02820_ Penetrated by HV Slug. 02824_ Extracted 5 matter. 02824_ HV Slug penetrates Earth. 02828_ Penetrated by HV Slug. 02828_ HV Slug penetrates Wall. 02829_ Machine disabled. 02832_ Penetrated by HV Slug. 02841_ HV Slug penetrates Wall. 02841_ Penetrated by HV Slug. 02845_ HV Slug penetrates Earth. 02847_ Wall collapses. 02849_ Penetrated by HV Slug. 02854_ XICI:4 WQ6OKQ/Y81JJ|FCCXUXTKLPYM 02854_ Penetrated by HV Slug. 02854_ Critical hit (Destroy). 02854_ Assault Rifle destroyed. 02854_ Penetrated by HV Slug. 02858_ HV Slug penetrates Earth. 02858_ Penetrated by HV Slug. Map ----- +----------------------------------------------------+ | ?????????????????????????????????????????????????? | | ?????????????????????????????????????????????????? | | ?????????????????????????????????????????????????? | | ?????????????????????????????????????????????????? | | ?????????????????????????????????????????????????? | | ?????????????????????????????????????????????????? | | ?????????????????????????????#???????????????????? | | ?????????????????#????????#???#?#????????????????? | | ???????????????????#??????#???##??###????????????? | | ??????????????????#?#????#?#????##?#????#????????? | | ??????????????????#?#################?##?????????? | | ??????????????? ############?#!!! "#####?##?#??#?? | | ???????????? ?? #""##?##### "#?####?##??##?? | | ?????????????? ##?#### "#########?#?##? | | ??????????#??" ####### ""########?###?## | | ??????#?????"" #####" ""###########?? | | ???????#???#### ## ""?#####?#####?" | | ?????????#??#### #" ###########?##?" | | ???????????###?#"## ##############"" | | ????????#??########### ##############"" | | ?????????###?########### "########?#### | | ???????################ ""######?###?"" | | ??????????###### !""" ### ##?###### | | ?????#??#?#?####! /g ###"" * """###?##### | | ??????????###??#! ####" "#####X# | | ??????????######! @;####" * | | ??????????####?# !""""" ;;; ###"# = | | ??????????#?#?#########;# # ###### * | | ??????????#?#?#####?## # # ####### | | ?????#????##?####?##?#### ## ######### | | ??????????#####?###### ## ## ######### | | ?????????#?##?########### #########?#### | | ?????????#??#??###?###### ###############" | | ????????????############# ###############""" | | ????????????############# #?#############" | | ??????????##?###?######## ##############"" | | ????????????#####?####### ############?#""" | | ??????????????########### #######?##?##""" | | ????????????????######### #########??##?"" | | ??????????????????##?#### ######?#####?"" | | ????????????????????###?# #####??#???#??"" | | ???????????????????????????????????###?"" | | ???????????????????????????????????????#"" | | ???????????????????????????????????????#?""" | | ???????????????????????????????????????????? | | ??????????????????????????????????????????????? | | ?????????????????????????????????????????????????? | | ?????????????????????????????????????????????????? | | ?????????????????????????????????????????????????? | | ?????????????????????????????????????????????????? | +----------------------------------------------------+ Best States ------------- Heat Dissipation 49 Energy Generation 14 Energy Capacity 275 Matter Stores 300 Matter Capacity 300 Sight Range 16 Robot Scan Range 10 Terrain Scan Range 16 Terrain Scan Density 110 Evasion (%) 50 Offensive Hacking 15 Item Schematics ----------------- None Robot Schematics ------------------ None Fabricated ------------ Nothing Alien Tech Used ----------------- None Achievements -------------- None Challenges ------------ None RPGLIKE | -11 -10 -10 -10 --------- Run | Scr Mat Min Exi Levels Raised 3 | . 2 1 . XP Earned 8065 | 3000 3815 1050 200 XP Spent 7470 | 2900 3020 500 1050 Upgrades 28 | 9 11 1 7 Propulsion Slot 1 | 1 . . . Utility Slot 2 | 2 . . . Weapon Slot 2 | 1 1 . . Core Integrity 6 | . . . 6 Heat Dissipation 4 | . 4 . . Inventory Capacity 3 | 1 . 1 1 Sensor Range 5 | 4 1 . . Terrain Scan Density 1 | . 1 . . Ranged Accuracy 3 | . 3 . . Hack Attack % 1 | . 1 . . Protomatter Created 145 | . 145 . . Integrity Restored 367 | . 367 . . Core 344 | . 344 . . Parts 23 | . 23 . . Protomatter Decayed 30 | . 21 . 9 Game ------ Seed PoweredFluxPrototype Manual? 0 Play Time 00:29:11 Cumulative 374.0 hours Start 2022.09.30 @ 19:31:40 End 2022.09.30 @ 19:59:24 Sessions 1 Manual Loads 0 Difficulty Rogue Special Mode Winter2019/RPGLIKE Game No. 64 Rogue 57 Adventurer 1 Explorer 6 Win Type - Total 27 Types 7/3/9/1/1/1/3/1/1 Lore% 90 Gallery% 91 Achievement% 78 Wizard Run 0 Options --------- ASCII 0 Keyboard 0 Movement Mouse Keybinds 0 Fullscreen 1 Font 18/SmallcapsGlow Map View 76x50 Tactical HUD 1 Map Filters NONE Filters NONE Steam 1 RUN: 94529b5d-00ff-444d-a132-df5c1c6c3a1b